bitfinex-derivatives/quotes_ETHF0:USTF0_20260226
["timestamp","ask_amount","ask_price","bid_price","bid_amount"]
[1772129666666,5.11887859,1982.7,1981.8,51.288]
[1772129666977,5.11887859,1982.7,1981.9,10.492]
[1772129667173,5.11887859,1982.7,1981.9,10.49641512]
[1772129667680,5.11887859,1982.7,1982.0,0.02301273]
[1772129668179,4.5290055,1982.7,1982.0,0.02301273]
[1772129668677,12.42475694,1982.7,1982.0,0.02301273]
[1772129668872,7.89575144,1982.7,1982.0,0.02301273]
[1772129669276,0.5776761,1982.6,1981.9,0.00441512]
[1772129669576,0.5776761,1982.5,1981.9,0.00441512]
[1772129670572,0.57570906,1982.3,1981.9,0.00441512]
[1772129670773,0.57570906,1982.3,1981.5,0.02694681]
[1772129670973,0.57570906,1982.3,1981.6,40.8]
[1772129670974,4.5290055,1982.2,1981.6,40.8]
[1772129671175,5.10471456,1982.2,1981.7,10.519]
[1772129671369,4.5290055,1982.2,1981.6,0.02694681]
[1772129671568,0.57570906,1982.4,1981.2,6.20812]
[1772129671569,0.57570906,1982.4,1981.8,0.02694681]
[1772129671776,0.57570906,1982.4,1981.9,0.02488134]
[1772129671972,0.57570906,1982.4,1982.0,7.905]
[1772129672373,0.57570906,1982.4,1981.8,0.02870198]
[1772129672575,0.57570906,1982.4,1981.9,10.524]
[1772129672776,0.57570906,1982.4,1981.9,10.54888134]
[1772129673379,0.57674179,1982.6,1981.9,10.54888134]
[1772129673775,0.57674179,1982.6,1981.9,0.02488134]
[1772129673979,0.57674179,1982.6,1982.0,10.533]
[1772129674175,0.57674179,1982.6,1982.0,10.56334836]
[1772129674577,0.57812896,1982.8,1982.1,0.03034836]
[1772129675177,0.57812896,1982.8,1981.9,0.28261836]
[1772129675378,0.57812896,1982.8,1982.0,10.535]
[1772129675772,0.57812896,1982.8,1982.0,10.56549182]
[1772129676279,0.57812896,1982.8,1982.0,0.03049182]
[1772129676477,0.57812896,1982.8,1982.1,10.535]
[1772129677082,0.57812896,1982.8,1982.1,10.56557112]
[1772129677479,0.57812896,1982.8,1982.2,0.03057112]
[1772129678179,0.57812896,1982.8,1981.8,0.00382064]
[1772129679886,0.57812896,1982.8,1981.8,0.03045931]
[1772129681578,0.57812896,1982.8,1981.8,0.00382064]
[1772129682588,0.57812896,1982.8,1981.9,0.03066576]
[1772129683186,0.57812896,1982.8,1981.8,0.25610064]
[1772129683890,0.57812896,1982.8,1981.8,10.52282064]
[1772129684284,8.480852,1982.2,1981.8,10.52282064]
[1772129684484,7.89575144,1982.2,1981.8,10.53120991]
[1772129684787,0.58510056,1982.4,1981.9,0.00838927]
[1772129685091,0.58510056,1982.4,1981.8,10.52282064]
[1772129685790,0.58525184,1982.6,1981.9,0.00808672]
[1772129686191,0.58525184,1982.6,1981.8,10.52282064]
[1772129686792,0.58525184,1982.6,1981.9,10.516]
[1772129686993,0.58525184,1982.6,1981.8,0.00382064]
[1772129687893,0.56354831,1983.1,1982.2,0.54143382]
[1772129688089,0.56354831,1983.1,1982.3,10.513]
[1772129688288,0.56354831,1983.1,1982.2,0.54143382]
[1772129688494,0.56354831,1982.9,1981.9,0.54143382]
[1772129688793,0.56710691,1982.9,1981.9,0.54143382]
[1772129690195,0.56354831,1982.7,1981.9,0.54143382]
[1772129691190,0.56710691,1982.9,1982.1,0.54143382]
[1772129691398,0.56710691,1982.9,1982.2,0.54143382]
[1772129691786,0.0035586,1982.9,1982.4,0.54143382]
[1772129692187,0.56354831,1983.1,1982.3,10.519]
[1772129692393,0.56354831,1983.1,1982.3,11.06043382]
[1772129693096,0.56875353,1983.1,1982.3,11.06043382]
[1772129693796,0.56875353,1983.1,1982.4,0.54143382]
[1772129694797,0.00520522,1983.1,1982.4,0.54143382]
[1772129695195,0.56875353,1983.1,1982.4,0.54143382]
[1772129695399,0.56875353,1983.1,1982.5,10.515]
[1772129695696,0.56875353,1983.1,1982.2,0.54143382]
[1772129697892,0.56875353,1983.1,1982.2,2.46395008]
[1772129698095,0.56875353,1983.1,1982.3,0.54143382]
[1772129698499,7.89575144,1982.8,1982.3,0.54143382]
[1772129699197,8.45929975,1982.8,1982.3,0.54143382]
[1772129699398,8.45929975,1982.8,1982.4,10.509]
[1772129699603,8.45929975,1982.8,1982.4,11.05043382]
[1772129699804,0.56354831,1982.8,1982.4,11.05043382]
[1772129700398,0.56354831,1982.8,1982.1,0.54143382]
[1772129700595,0.56354831,1982.8,1982.2,10.511]
[1772129701397,0.56354831,1983.0,1982.3,0.54143382]
[1772129701598,0.56875353,1983.1,1982.3,0.54143382]
[1772129702501,0.56875353,1983.1,1982.2,10.512]
[1772129702701,0.56354831,1983.0,1981.8,10.51582064]
[1772129703003,0.56354831,1983.0,1981.8,11.05725446]
[1772129703704,0.00520522,1983.1,1981.8,11.05725446]
[1772129703705,0.25217,1982.7,1981.8,0.00382064]
[1772129703899,0.56354831,1982.6,1981.8,0.00382064]
[1772129704095,0.56354831,1982.6,1981.8,0.54525446]
[1772129706003,0.56354831,1983.0,1982.1,0.54143382]
[1772129706203,0.56354831,1983.0,1982.2,0.54143382]
[1772129706904,0.00520522,1983.1,1982.4,0.54143382]
[1772129708709,0.00520522,1983.1,1982.6,0.54143382]
[1772129709505,0.58590027,1983.1,1982.2,0.54092043]
[1772129711406,0.58590027,1983.1,1981.9,0.54092043]
[1772129712006,0.58069505,1982.7,1981.8,0.00382064]
[1772129712202,0.58069505,1982.7,1981.5,0.54092043]
[1772129713105,0.58069505,1982.5,1981.5,0.54092043]
[1772129713306,0.58069505,1982.5,1981.5,0.54623804]
[1772129713506,7.89575144,1981.8,1981.5,0.00531761]
[1772129713709,7.89575144,1981.8,1981.5,0.54623804]
[1772129714210,0.58069505,1982.2,1981.5,0.54623804]
[1772129714410,0.58069505,1982.2,1981.5,0.00531761]
[1772129715713,0.58069505,1982.2,1981.6,0.00282347]
[1772129716012,6.86533522,1983.1,1981.6,0.00282347]
[1772129716013,0.58772841,1983.0,1981.6,0.00282347]
[1772129716810,0.58772841,1983.0,1981.7,10.482]
[1772129717209,0.25214,1982.9,1981.7,10.482]
[1772129717411,0.58772841,1982.8,1981.7,10.482]
[1772129718018,0.58772841,1982.8,1981.6,0.00282347]
[1772129718316,0.58772841,1982.8,1981.6,10.477]
[1772129718813,0.25217,1982.7,1981.6,10.477]
[1772129719015,0.58701768,1982.6,1981.6,10.477]
[1772129719419,0.58701768,1982.6,1981.5,0.00531761]
[1772129720611,0.58819072,1982.4,1981.5,0.00531761]
[1772129725118,0.84041072,1982.4,1981.5,0.00531761]
[1772129725314,0.58907219,1982.3,1981.5,0.00531761]
[1772129725514,0.00520522,1983.1,1981.8,6.20629]
[1772129725716,0.58907219,1984.2,1982.7,0.25217]
[1772129725917,0.25195,1984.5,1982.8,10.451]
[1772129725918,0.58925892,1983.8,1982.8,10.451]
[1772129726125,0.58925892,1983.8,1982.8,51.251]
[1772129726321,0.58925892,1983.6,1982.8,51.251]
[1772129726526,0.26157338,1983.6,1982.9,0.89458984]
[1772129726722,0.58995976,1983.5,1983.0,1.10806228]
[1772129726927,0.00926471,1983.5,1983.1,1.10806228]
[1772129727128,0.00926471,1983.4,1983.2,0.56714185]
[1772129727324,0.00926471,1983.5,1983.3,0.56714185]
[1772129727627,0.58436782,1983.6,1983.1,0.54092043]
[1772129727628,0.58069505,1984.4,1983.4,0.56714185]
[1772129727826,0.58069505,1984.4,1983.5,0.56714185]
[1772129728032,0.58069505,1984.4,1983.6,0.56714185]
[1772129728231,0.58069505,1984.4,1983.7,0.56714185]
[1772129728427,0.58069505,1984.1,1983.0,0.54092043]
[1772129730025,0.58069505,1984.1,1983.2,0.54092043]
[1772129730522,0.58069505,1984.1,1982.9,1.92716043]
[1772129730523,0.58069505,1984.1,1982.9,0.00464417]
[1772129730724,0.58069505,1984.1,1983.0,0.54092043]
[1772129737630,0.5870168,1984.4,1983.1,0.57416007]
[1772129737834,0.5870168,1984.4,1983.3,0.57416007]
[1772129740534,0.5870168,1984.4,1983.5,0.5633647]
[1772129740733,0.5870168,1984.4,1983.6,0.52774446]
[1772129740935,0.5870168,1984.4,1983.7,0.52774446]
[1772129741235,0.5870168,1984.4,1983.8,0.52774446]
[1772129741434,0.5870168,1984.4,1983.9,0.52774446]
[1772129741634,0.5870168,1984.4,1983.5,0.5633647]
[1772129742928,0.5870168,1984.4,1983.6,0.5633647]
[1772129743134,0.56809585,1984.6,1983.6,0.5633647]
[1772129744131,0.5720494,1984.6,1983.6,0.5633647]
[1772129747136,0.56809585,1984.4,1983.6,0.5633647]
[1772129748039,0.5720494,1984.6,1983.6,0.5633647]
[1772129751140,0.56809585,1984.5,1983.6,0.5633647]
[1772129753645,0.56809585,1984.5,1983.7,0.50358667]
[1772129753841,0.56809585,1984.1,1983.2,0.5633647]
[1772129754142,0.07659018,1984.1,1983.2,0.5633647]
[1772129755447,0.13205736,1983.9,1983.0,0.5633647]
[1772129757247,12.80286,1984.5,1982.9,0.00464417]
[1772129757248,0.1280151,1983.7,1982.9,0.00464417]
[1772129757640,0.1280151,1983.5,1982.9,0.00464417]
[1772129760649,0.00083788,1984.0,1982.9,0.59301691]
[1772129761248,0.00083788,1984.4,1983.2,0.58837274]
[1772129761553,2.62006075,1984.7,1983.3,0.58837274]
[1772129761554,0.00083788,1984.2,1983.3,0.58837274]
[1772129761750,0.25199,1984.1,1983.3,0.58837274]
[1772129762352,0.25199,1984.1,1983.0,0.60237491]
[1772129762549,0.25204,1983.8,1983.0,0.60237491]
[1772129763149,0.25204,1983.8,1982.9,0.00464417]
[1772129763351,0.25197,1984.3,1982.9,0.60701908]
[1772129763653,0.25201,1984.0,1982.9,0.60701908]
[1772129764049,0.25205,1983.6,1982.9,0.00464417]
[1772129765751,0.25205,1983.6,1982.9,0.60459531]
[1772129765952,0.25205,1983.6,1983.0,0.42024935]
[1772129766149,0.25205,1983.6,1983.1,0.42024935]
[1772129766353,0.25205,1983.6,1983.2,0.42024935]
[1772129766554,0.25205,1983.6,1983.3,0.42024935]
[1772129766753,0.25205,1983.6,1983.1,0.58936065]
[1772129767257,0.25205,1983.6,1982.9,0.59400482]
[1772129769756,0.25205,1983.6,1982.7,0.59007957]
[1772129770451,0.25205,1983.6,1982.1,0.59018096]
[1772129770657,6.20043,1983.7,1982.1,0.59569227]
[1772129770658,6.607,1983.5,1982.1,0.59569227]
[1772129771756,0.00155329,1983.2,1982.1,0.59569227]
[1772129772060,0.00155329,1983.1,1982.1,0.59569227]
[1772129773461,0.00537045,1983.2,1982.1,0.59569227]
[1772129773663,0.00537045,1983.2,1982.3,0.5884166]
[1772129778667,0.00537045,1983.2,1982.5,0.58756972]
[1772129778868,0.00537045,1983.2,1982.7,0.58756972]
[1772129779069,0.0086175,1983.2,1982.8,1.00437073]
[1772129779269,0.00537045,1983.2,1983.0,0.58756972]
[1772129779466,0.00537045,1983.2,1983.1,0.41680101]
[1772129779967,0.00537045,1983.2,1983.1,0.08142168]
[1772129780571,0.00537045,1983.2,1983.0,0.58756972]
[1772129780771,0.55289779,1983.2,1982.1,0.00551131]
[1772129780970,0.54752734,1983.0,1982.1,0.00551131]
[1772129781269,0.21969393,1983.0,1982.1,0.00551131]
[1772129781871,0.00537045,1983.2,1982.1,0.00551131]
[1772129781872,0.2667815,1982.8,1982.1,0.00551131]
[1772129782070,0.2667815,1982.8,1981.3,10.78539191]
[1772129782270,0.2667815,1982.8,1981.4,10.53305191]
[1772129782565,0.2667815,1982.8,1981.5,40.8]
[1772129782869,0.2667815,1982.8,1981.4,10.53305191]
[1772129783070,0.2667815,1982.8,1981.3,10.78539191]
[1772129783271,0.2667815,1982.8,1981.4,51.33771496]
[1772129783668,0.5189515,1982.7,1981.5,0.25232]
[1772129783972,0.27029902,1982.9,1981.5,0.25232]
[1772129785574,0.27029902,1982.5,1981.6,10.261]
[1772129786972,0.27029902,1982.5,1981.5,10.263]
[1772129787882,0.27029902,1982.5,1981.5,10.271]
[1772129788481,0.27029902,1982.5,1981.4,0.00466305]
[1772129788778,0.27029902,1982.5,1981.4,10.28066305]
[1772129790988,0.27029902,1982.5,1981.4,10.53299305]
[1772129791189,0.33800157,1982.9,1981.4,10.53299305]
[1772129791879,0.33800157,1982.9,1981.7,0.25229]
[1772129792086,0.25213,1983.0,1981.7,0.25229]
[1772129792687,0.33649078,1983.1,1981.8,0.40081148]
[1772129792890,0.00537045,1983.2,1981.9,10.69381148]
[1772129793188,0.00537045,1983.2,1982.0,0.40081148]
[1772129793385,0.00537045,1983.2,1982.1,0.40081148]
[1772129793585,0.00537045,1983.2,1982.2,0.40081148]
[1772129793786,0.00537045,1983.2,1982.3,0.40081148]
[1772129794085,0.00537045,1983.2,1982.4,0.40081148]
[1772129794286,0.00537045,1983.2,1982.5,0.40081148]
[1772129794487,0.00537045,1983.2,1982.6,0.40081148]
[1772129794687,0.00537045,1983.2,1982.7,0.40081148]
[1772129794883,0.00537045,1983.2,1982.8,0.40081148]
[1772129795085,0.35667597,1983.2,1982.9,0.40081148]
[1772129795387,0.35667597,1983.2,1982.2,6.626]
[1772129796280,0.35667597,1983.2,1982.2,6.63155333]
[1772129796482,0.35667597,1983.2,1982.3,0.53493431]
[1772129797081,0.38186618,1983.0,1982.3,0.53493431]
[1772129800494,0.25212,1983.1,1982.3,0.53493431]
[1772129800689,0.38849301,1983.2,1982.3,0.53493431]
[1772129802496,0.00537045,1983.2,1982.3,0.53493431]
[1772129802995,0.00537045,1983.2,1982.4,0.56495382]
[1772129803289,4.16244152,1983.9,1982.4,0.56495382]
[1772129803290,0.38328886,1983.8,1982.6,0.56495382]
[1772129803694,0.25202,1983.9,1982.6,0.56495382]
[1772129804088,0.25718653,1983.9,1982.7,0.56495382]
[1772129804287,0.00516653,1983.9,1982.7,0.56495382]
[1772129804491,0.00516653,1983.9,1982.9,0.56495382]
[1772129804690,0.00516653,1983.9,1983.0,10.235]
[1772129804889,0.00516653,1983.9,1983.1,0.56495382]
[1772129807399,0.00516653,1983.9,1983.3,0.56495382]
[1772129807592,0.67958787,1984.4,1983.5,0.56495382]
[1772129807794,6.3104379,1985.0,1983.0,10.244]
[1772129807795,0.43599876,1985.2,1983.7,0.56495382]
[1772129807995,0.43599876,1985.2,1983.9,0.56495382]
[1772129808300,0.43599876,1985.2,1984.1,0.56495382]
[1772129808495,0.43599876,1985.2,1984.3,0.56495382]
[1772129808695,0.43599876,1985.2,1984.4,0.39778502]
[1772129808696,0.25186,1985.1,1984.4,0.39778502]
[1772129808899,0.43599876,1985.0,1984.3,0.00424665]
[1772129809599,0.43599876,1985.0,1984.3,0.56920047]
[1772129810390,0.25186,1985.1,1984.3,0.56920047]
[1772129810595,0.44434737,1985.2,1984.3,0.56920047]
[1772129813499,0.42900843,1985.1,1984.3,0.00424665]
[1772129813692,0.42900843,1985.1,1984.3,0.56920047]
[1772129813896,0.25731068,1985.2,1984.3,0.56920047]
[1772129814100,0.00545068,1985.2,1984.3,0.56920047]
[1772129814304,1.36123885,1985.6,1984.5,0.56495382]
[1772129814503,0.67673778,1985.7,1984.5,0.56495382]
[1772129815207,0.42494778,1985.6,1984.5,0.56495382]
[1772129816306,0.68240237,1985.7,1984.5,0.56495382]
[1772129816700,0.42420826,1985.6,1984.5,0.56495382]
[1772129817095,0.42420826,1985.4,1984.5,0.56495382]
[1772129819007,0.42839388,1985.4,1984.5,0.56495382]
[1772129820804,0.42839388,1985.4,1984.6,0.9573492]
[1772129821004,0.42839388,1985.4,1984.6,0.56495382]
[1772129822401,0.39972323,1985.2,1984.3,0.00424665]
[1772129822606,0.39972323,1985.2,1984.3,0.56920047]
[1772129823603,0.39972323,1985.0,1984.1,0.56495382]
[1772129823804,0.39988449,1984.9,1984.1,0.56495382]
[1772129824005,0.39988449,1984.8,1984.1,0.56495382]
[1772129824405,0.39988449,1984.8,1984.3,0.56495382]
[1772129824709,0.39988449,1984.8,1984.3,0.56901306]
[1772129825507,0.39988449,1984.8,1983.5,0.56495382]
[1772129825508,0.39988449,1984.7,1983.5,0.56495382]
[1772129825809,0.39988449,1984.7,1983.7,0.56495382]
[1772129826008,0.39988449,1984.7,1983.9,0.56495382]
[1772129826208,0.39988449,1984.7,1984.1,0.56495382]
[1772129826409,0.39988449,1984.7,1984.3,0.56495382]
[1772129827010,0.40066436,1985.2,1984.3,0.56495382]
[1772129827211,0.40066436,1985.2,1984.4,0.39309738]
[1772129827507,0.40066436,1985.2,1984.5,0.56495382]
[1772129827698,0.40066436,1985.2,1984.2,0.56495382]
[1772129827901,0.40066436,1985.2,1984.4,0.56495382]
[1772129828307,0.25186,1985.1,1984.5,0.39342606]
[1772129828612,0.40139201,1985.0,1984.2,0.56495382]
[1772129828810,0.40139201,1985.0,1984.1,0.00456619]
[1772129828811,0.40139201,1985.0,1984.3,0.95862615]
[1772129829012,0.40139201,1985.0,1984.5,0.56495382]
[1772129829310,0.40139201,1985.0,1984.6,0.56495382]
[1772129830102,0.40139201,1985.0,1984.2,0.56837197]
[1772129830306,0.40139201,1985.0,1984.4,0.56837197]
[1772129830508,0.40139201,1985.0,1984.5,0.39410997]
[1772129830708,0.66046971,1985.1,1984.7,0.56837197]
[1772129831011,0.66046971,1985.1,1984.6,0.39410997]
[1772129831012,0.66041971,1985.6,1984.9,0.56837197]
[1772129831214,0.66041971,1985.6,1985.0,0.96283393]
[1772129831515,0.40860971,1986.5,1985.4,0.56837197]
[1772129831706,0.25172,1986.2,1985.5,0.39446196]
[1772129831906,0.40320924,1986.1,1985.6,0.39446196]
[1772129832106,0.40320924,1986.1,1985.7,0.39446196]
[1772129832308,0.40320924,1986.1,1985.4,0.56837197]
[1772129832507,0.40879874,1986.1,1985.4,0.57421055]
[1772129832903,0.0055895,1986.1,1985.4,0.57421055]
[1772129838217,0.18304867,1986.1,1985.4,0.57421055]
[1772129838417,0.17745917,1985.9,1985.4,0.57421055]
[1772129839215,0.18304867,1986.1,1985.4,0.57421055]
[1772129840417,0.0055895,1986.1,1985.4,0.57421055]
[1772129841421,0.11765322,1986.1,1985.4,0.57421055]
[1772129841817,0.0055895,1986.1,1985.4,0.57421055]
[1772129842119,6.603,1986.5,1985.4,0.57421055]
[1772129842315,1.10517948,1986.8,1985.6,0.56837197]
[1772129842521,1.10517948,1986.8,1985.9,0.56837197]
[1772129843121,1.10923998,1986.8,1985.9,0.56837197]
[1772129844115,1.20044503,1986.8,1985.9,0.56837197]
[1772129844323,1.10923998,1986.8,1986.1,0.56837197]
[1772129844517,1.20044503,1986.8,1986.3,0.56837197]
[1772129844718,0.09120505,1986.7,1986.4,3.05e-06]
[1772129844914,0.51981913,1986.8,1986.2,0.56837197]
[1772129845116,0.55630998,1987.6,1986.5,0.56837197]
[1772129845516,0.55630998,1988.2,1986.7,1.91974118]
[1772129845712,0.55630998,1988.2,1986.8,0.56837197]
[1772129846118,0.56054318,1988.2,1986.8,0.57395996]
[1772129846314,0.0042332,1988.2,1986.9,0.56837197]
[1772129846513,0.56054318,1988.2,1986.9,0.56837197]
[1772129847118,0.0042332,1988.2,1986.9,0.56837197]
[1772129847322,0.55630998,1988.0,1986.9,0.56837197]
[1772129847819,0.25148,1988.1,1986.9,0.56837197]
[1772129848014,0.80778998,1988.1,1986.9,0.56837197]
[1772129849024,0.55630998,1988.0,1986.9,0.56837197]
[1772129850217,0.25148,1988.1,1986.9,0.56837197]
[1772129850727,0.55630998,1988.0,1986.9,0.56837197]
[1772129851727,0.0042332,1988.2,1986.9,0.56837197]
[1772129852421,36.40614113,1989.6,1987.5,0.56837197]
[1772129852422,0.55630998,1988.7,1987.5,0.56837197]
[1772129852626,0.55630998,1988.7,1987.6,0.56837197]
[1772129853628,0.56128563,1988.7,1987.6,0.56837197]
[1772129853828,0.55630998,1988.6,1987.6,0.56837197]
[1772129854628,0.55630998,1988.4,1987.6,0.56837197]
[1772129856028,0.2329367,1988.5,1987.6,0.56837197]
[1772129856229,0.82204642,1988.5,1987.6,0.56837197]
[1772129857034,0.58910972,1988.4,1987.6,0.56837197]
[1772129857935,0.58910972,1988.2,1987.4,0.58521601]
[1772129858632,0.84058972,1988.1,1987.4,0.58521601]
[1772129858925,0.58910972,1988.0,1987.4,0.58521601]
[1772129859636,0.25148,1988.1,1987.4,0.58521601]
[1772129859637,0.58910972,1989.9,1988.7,0.58559851]
[1772129859925,0.58910972,1989.9,1988.9,0.58559851]
[1772129860131,7.31541578,1989.8,1988.7,0.58559851]
[1772129860327,1.91974118,1989.5,1988.4,0.58559851]
[1772129860633,0.57066989,1989.4,1988.5,0.95816446]
[1772129860826,0.57066989,1989.4,1988.5,0.58559851]
[1772129861425,0.57066989,1989.2,1988.4,0.00614595]
[1772129861930,0.57066989,1989.2,1988.4,0.59174446]
[1772129862830,0.57066989,1989.4,1988.5,0.37188624]
[1772129863129,0.57066989,1989.4,1988.7,0.58559851]
[1772129864227,1.58134473,1991.3,1989.8,0.58559851]
[1772129864426,0.57066989,1990.8,1989.8,0.58559851]
[1772129864629,0.57066989,1990.5,1989.2,0.58559851]
[1772129864825,0.57066989,1990.5,1989.4,0.58559851]
[1772129865028,0.57066989,1990.5,1989.5,0.37148972]
[1772129865230,0.57521627,1990.5,1989.5,0.58970485]
[1772129868634,6.17507,1991.9,1989.5,0.58970485]
[1772129868635,0.31634606,1991.3,1989.6,0.58559851]
[1772129868829,0.58919345,1992.1,1990.1,0.25122]
[1772129869035,8.09311118,1992.4,1990.2,0.37081397]
[1772129869036,0.58919345,1991.6,1990.2,0.37081397]
[1772129869236,0.58919345,1991.6,1990.3,0.37081397]
[1772129869437,0.58919345,1991.6,1990.4,0.37081397]
[1772129869628,0.59318733,1991.6,1990.5,0.37081397]
[1772129869832,0.59318733,1991.6,1990.1,10.41822]
[1772129870127,0.59318733,1991.6,1990.2,0.38884568]
[1772129870333,0.59861601,1991.4,1990.3,0.38884568]
[1772129870533,0.59861601,1991.4,1990.4,0.38884568]
[1772129870737,0.59861601,1991.4,1990.0,0.25124]
[1772129870938,0.59861601,1991.4,1990.1,0.3886779]
[1772129871141,0.00399388,1991.6,1990.3,0.25121]
[1772129871341,0.00399388,1991.6,1990.4,0.3886779]
[1772129871538,0.00399388,1991.6,1990.3,0.25121]
[1772129871539,0.00399388,1991.6,1990.5,0.3886779]
[1772129871746,0.00399388,1991.6,1990.6,0.3886779]
[1772129871935,0.00399388,1991.6,1990.7,0.3886779]
[1772129872136,0.00399388,1991.6,1990.3,0.25121]
[1772129872439,0.00399388,1991.6,1990.4,0.38836337]
[1772129872638,0.00399388,1991.6,1990.5,0.38836337]
[1772129872836,4.12505858,1993.6,1991.6,6.17575]
[1772129873139,1.91974118,1993.0,1991.7,0.38836337]
[1772129873339,0.60272278,1992.9,1991.4,10.194]
[1772129873536,0.60272278,1992.9,1991.5,0.38762609]
[1772129873836,0.60272278,1992.9,1991.6,0.38762609]
[1772129874033,0.60717554,1992.9,1991.6,0.38762609]
[1772129874231,0.60717554,1992.9,1991.5,10.1978338]
[1772129874435,0.60717554,1992.9,1991.6,0.38813185]
[1772129874637,0.60717554,1992.9,1991.5,10.1978338]
[1772129874832,0.60717554,1992.9,1991.6,0.38809177]
[1772129875038,0.00445276,1992.9,1991.7,0.38809177]
[1772129875236,0.00445276,1992.9,1991.7,10.204]
[1772129875838,0.61747639,1992.9,1991.5,0.0048338]
[1772129876037,0.61302363,1992.7,1991.5,0.0048338]
[1772129877532,0.86393363,1992.7,1991.5,0.0048338]
[1772129877836,0.61794895,1992.5,1991.5,0.0048338]
[1772129878234,0.61794895,1992.3,1991.5,0.0048338]
[1772129879443,0.61794895,1992.1,1990.5,10.41917]
[1772129879637,0.61794895,1992.1,1990.1,6.18009]
[1772129879638,0.61794895,1992.1,1990.7,0.25116]
[1772129879837,0.62226539,1992.4,1991.0,0.25111]
[1772129880036,0.62226539,1992.4,1991.1,0.38695861]
[1772129880341,0.62226539,1992.4,1991.1,40.80358674]
[1772129880741,0.62226539,1992.4,1991.2,0.38696857]
[1772129880936,6.79556539,1992.4,1991.1,0.00358674]
[1772129881141,0.62226539,1992.2,1991.1,0.00358674]
[1772129881339,0.25098,1992.1,1991.1,0.00358674]
[1772129881539,0.62226539,1992.0,1991.1,0.00358674]
[1772129882736,0.87213729,1993.6,1991.7,0.25102]
[1772129882948,0.87213729,1993.6,1991.8,0.3874216]
[1772129882949,0.62579005,1992.9,1991.8,0.3874216]
[1772129883145,0.00445276,1992.9,1991.7,0.25102]
[1772129883443,0.62579005,1992.9,1991.8,0.4219024]
[1772129883641,0.62579005,1992.9,1991.1,0.25467674]
[1772129883836,0.00445276,1992.9,1991.5,0.25105]
[1772129884043,0.63013447,1992.9,1991.6,0.42171775]
[1772129884238,0.63013447,1992.9,1991.7,0.42171775]
[1772129884435,0.63013447,1992.9,1991.8,0.42171775]
[1772129884634,0.63013447,1992.9,1991.5,0.25105]
[1772129884836,0.63013447,1992.9,1991.6,0.42168725]
[1772129885035,0.63013447,1992.9,1991.7,0.42168725]
[1772129885240,0.62568171,1992.7,1991.2,0.25109]
[1772129885436,0.62568171,1992.7,1991.3,0.42199442]
[1772129885645,0.62568171,1992.7,1991.4,0.42199442]
[1772129885845,0.62568171,1992.7,1991.5,0.42199442]
[1772129886048,0.62568171,1992.7,1991.2,0.25109]
[1772129886248,0.62568171,1992.7,1991.3,0.42194488]
[1772129886452,0.62893362,1992.5,1991.4,0.42194488]
[1772129886647,0.62893362,1992.5,1991.1,0.00358674]
[1772129886648,0.62893362,1992.4,1991.1,0.00358674]
[1772129886949,0.62893362,1992.3,1991.1,0.00358674]
[1772129887347,0.62893362,1993.8,1991.7,6.1754]
[1772129887651,0.62893362,1993.8,1992.0,0.25099]
[1772129887845,0.62893362,1993.8,1992.1,0.42296422]
[1772129888146,0.62796037,1993.7,1992.2,0.42296422]
[1772129888349,0.62796037,1993.7,1992.3,0.42296422]
[1772129888539,0.63253602,1993.7,1992.4,0.42296422]
[1772129888740,0.62796037,1993.5,1992.0,0.25099]
[1772129888937,0.62796037,1993.5,1992.1,0.4231776]
[1772129889139,0.62796037,1993.5,1992.2,0.4231776]
[1772129889342,0.62796037,1993.5,1992.3,0.4231776]
[1772129889546,0.62796037,1993.5,1992.4,0.4231776]
[1772129889746,0.62346643,1993.3,1991.5,0.25105]
[1772129889945,0.62346643,1993.3,1991.6,41.22395525]
[1772129890142,0.62346643,1993.1,1991.7,0.42395525]
[1772129890346,0.62346643,1993.1,1991.8,0.42395525]
[1772129890548,0.62346643,1993.1,1991.9,0.42395525]
[1772129890752,0.62346643,1993.1,1992.0,0.42395525]
[1772129890955,0.62346643,1993.1,1992.1,0.42395525]
[1772129891154,0.62346643,1993.1,1991.6,40.8]
[1772129891155,0.62346643,1993.1,1992.2,0.42395525]
[1772129891351,0.62346643,1993.1,1991.6,50.985]
[1772129891559,0.62346643,1993.1,1991.7,0.42465202]
[1772129891759,0.62346643,1993.1,1991.8,0.42465202]
[1772129891959,0.62346643,1993.1,1991.9,0.42465202]
[1772129892161,0.62346643,1993.1,1992.0,0.42465202]
[1772129892354,0.62346643,1993.1,1992.1,0.42465202]
[1772129892558,0.62346643,1993.1,1992.2,0.42465202]
[1772129892754,0.62346643,1993.1,1992.3,0.42465202]
[1772129893058,0.62346643,1993.1,1991.6,40.8]
[1772129893260,0.62346643,1993.1,1991.7,0.42533069]
[1772129893460,0.62218026,1993.4,1991.9,0.251]
[1772129893654,0.62218026,1993.4,1992.0,0.42533069]
[1772129893855,0.61685748,1993.9,1992.2,0.25097]
[1772129894165,0.61685748,1993.5,1992.3,0.42533069]
[1772129894359,0.25082,1993.4,1992.4,0.42533069]
[1772129894664,0.61685748,1993.3,1992.5,0.42533069]
[1772129894856,0.61685748,1993.3,1992.6,0.42533069]
[1772129895059,0.61685748,1993.3,1992.7,0.42533069]
[1772129895262,0.61685748,1993.3,1992.8,0.42533069]
[1772129895458,0.61685748,1993.3,1992.5,0.00641248]
[1772129896460,5.79634292,1993.6,1992.5,0.00641248]
[1772129896461,0.557241,1993.5,1992.6,0.20160433]
[1772129896661,0.557241,1993.5,1992.5,0.00641248]
[1772129896864,0.557241,1993.3,1992.5,0.00641248]
[1772129897367,0.557241,1993.3,1992.5,0.20801681]
[1772129898056,0.557241,1994.4,1993.0,0.19773908]
[1772129898259,0.557241,1994.2,1993.0,0.19773908]
[1772129898967,0.56233881,1994.2,1993.0,0.19773908]
[1772129899368,0.557241,1994.0,1992.5,0.00641248]
[1772129899565,0.557241,1994.0,1992.6,0.19773908]
[1772129899964,0.25073,1994.1,1992.6,0.19773908]
[1772129900168,0.00509781,1994.2,1993.0,0.19984215]
[1772129900369,0.56233881,1994.2,1993.0,0.19984215]
[1772129900569,0.56233881,1994.2,1993.0,40.99984215]
[1772129900765,0.56233881,1994.2,1993.1,0.19984215]
[1772129901462,6.16556,1994.9,1993.1,0.19984215]
[1772129901463,0.557241,1995.1,1993.1,0.19984215]
[1772129901668,6.1648,1995.2,1993.3,0.19984215]
[1772129901669,0.557241,1994.9,1993.3,0.19984215]
[1772129901968,0.557241,1994.6,1993.3,0.19984215]
[1772129902364,0.557241,1994.5,1993.3,0.19984215]
[1772129902668,0.56341086,1994.5,1993.3,0.19984215]
[1772129903465,0.557241,1994.3,1993.3,0.19984215]
[1772129904764,0.00616986,1994.5,1992.8,0.20823557]
[1772129904765,0.557241,1994.1,1992.8,0.20823557]
[1772129904970,0.557241,1993.9,1992.8,0.20823557]
[1772129905269,0.557241,1993.8,1992.8,0.20823557]
[1772129905868,0.557241,1993.6,1992.7,0.20421569]